Cogmind - Beta 13 @@@ ROGUE MODE // 2024.04.29 @ 14:48:12 Player: MO-55 Result: Destroyed by H-55 Commando with Gauss Rifle Performance ------------- Evolutions (2) 1000 Regions Visited (3) 600 Robots Destroyed (56) 280 Value Destroyed (1457) 1457 Prototype IDs (11) 220 Alien Tech Used (0) 0 Bonus (0) 0 TOTAL SCORE: 3557 Bonus ------- None Cogmind --------- Core Integrity 0/550 Matter 144/300 Energy 150/150 System Corruption 0% Temperature Cool (0) Movement Treading (160) Location -8/Materials Parts ------- > --- POWER (1) -------- Light Angular Momentum Engine > --- PROPULSION (4) --- Light Treads Light Treads Spiked Treads Carbon-fiber Leg > --- UTILITY (4) ------ Advanced Heat Sink Large Storage Unit Improved Terrain Scanner Light Armor Plating > --- WEAPON (2) ------- Subdweller Beam Cannon Battle Cannon > --- INVENTORY (15) --- Meta Core Carbon-fiber Leg Aerolev Unit Aerolev Unit Structural Scanner Improved Sensor Array Improved Signal Interpreter Improved Medium Armor Plating System Shield Battle Cannon Mini Grenade Launcher Heavy Mace Makeshift Hammer Katana Peak State ------------ > --- POWER ------------ Light Angular Momentum Engine > --- PROPULSION ------- Light Treads Light Treads Spiked Treads Carbon-fiber Leg > --- UTILITY ---------- Advanced Heat Sink Large Storage Unit Improved Terrain Scanner Light Armor Plating > --- WEAPON ----------- Subdweller Beam Cannon Battle Cannon > --- INVENTORY -------- Meta Core Carbon-fiber Leg Aerolev Unit Aerolev Unit Structural Scanner Improved Sensor Array Improved Signal Interpreter Light Armor Plating Hardened Medium Armor Plating Subdweller Beam Cannon Battle Cannon Mini Grenade Launcher Heavy Mace Makeshift Hammer Katana [Rating: 31] Favorites ----------- Power Ion Engine Engine Ion Engine Propulsion Light Treads Treads Light Treads Leg Aluminum Leg Wheel Subdweller Monowheel Hover Unit Aerolev Unit Utility Large Storage Unit Device Structural Scanner Storage Large Storage Unit Protection Makeshift Light Armor Plating Weapon Subdweller Beam Cannon Energy Gun EM Pulse Gun Energy Cannon Subdweller Beam Cannon Ballistic Gun Subdweller Machine Gun Ballistic Cannon Battle Cannon Build | -11 -10 -10 -8 ------- Run | Yrd Mat Sub Mat Slots Evolved 4 | . . . 4 Power . | . . . . Propulsion 2 | . . . 2 Utility 2 | . . . 2 Weapon . | . . . . Parts Attached 64 | 7 5 34 18 Power 7 | 2 . 4 1 Engine 7 | 2 . 4 1 Core . | . . . . Reactor . | . . . . Propulsion 15 | 2 . 8 5 Treads 7 | . . 4 3 Leg 3 | 2 . . 1 Wheel 4 | . . 4 . Hover 1 | . . . 1 Flight . | . . . . Utility 26 | 1 2 15 8 Device 12 | . 1 8 3 Storage 2 | 1 1 . . Processor . | . . . . Hackware . | . . . . Protection 12 | . . 7 5 Artifact . | . . . . Weapon 16 | 2 3 7 4 Energy Gun 2 | 1 1 . . Energy Cannon 6 | . 1 3 2 Ballistic Gun 7 | 1 1 4 1 Ballistic Cannon 1 | . . . 1 Launcher . | . . . . Special Weapon . | . . . . Impact Weapon . | . . . . Slashing Weapon . | . . . . Piercing Weapon . | . . . . Special Melee Weapon . | . . . . Unidentified Prototypes 1 | . . . 1 Parts Lost 13 | . 2 10 1 Power 3 | . . 3 . Propulsion 3 | . 1 2 . Utility 2 | . . 2 . Weapon 5 | . 1 3 1 Highest Loss Streak 5 | . 2 5 1 To Critical Strikes 1 | . . 1 . Average Slot Usage (%) 86 | . 81 86 92 Engine 13 | . 14 13 9 Treads 11 | . . 11 30 Leg 3 | . 17 . 2 Wheel 3 | . . 4 . Device 8 | . 6 7 14 Storage 13 | . 14 14 9 Protection 5 | . . 6 7 Energy Cannon 12 | . 9 14 9 Ballistic Gun 13 | . 15 14 7 Naked Turns . | . . . . Heaviest Build 49 | 13 28 41 49 Greatest Support 80 | 20 20 40 80 Greatest Overweight (x) 13 | . 2 13 2 Average Overweight (x) 1 | . 1 2 . Largest Inventory Capacity 15 | 8 15 15 15 Average Capacity 14 | 7 14 15 15 Most Carried 15 | 4 9 15 15 Average Carried 10 | 2 7 11 14 Final Capacity 15 | 8 15 15 15 Final Carried 15 | 4 9 15 14 Class Distribution -------------------- 60% | Mutant 39% | Scavenger-Mutant Dominant Class ---------------- Mutant | -10/Materials Mutant | -10/Subcaves Scavenger-Mutant | -8/Materials Resources | -11 -10 -10 -8 ----------- Run | Yrd Mat Sub Mat Matter Collected 1016 | 288 92 386 250 Remotely . | . . . . Salvage Created 1909 | 162 497 668 582 Parts 129 | 12 36 44 37 Haulers Intercepted 1 | . 1 . . Recyclers Shooed . | . . . . Parts Field Recycled . | . . . . Retrieved Matter . | . . . . Parts Self-Destructed 21 | . . 21 . Prevented . | . . . . Kills | -11 -10 -10 -8 ------- Run | Yrd Mat Sub Mat Combat Hostiles Destroyed 41 | . 11 20 10 Guns 15 | . 7 6 2 Cannons 21 | . 1 12 8 AOE 3 | . 3 . . Classes Destroyed 11 | 2 6 2 1 Builder 2 | . 2 . . Tunneler 8 | 4 3 . 1 Hauler 1 | . 1 . . Recycler 2 | 1 . . 1 Operator 1 | . 1 . . Watcher 1 | . 1 . . Swarmer 12 | . 6 6 . Grunt 11 | . 5 . 6 Sentry 5 | . . 2 3 Hunter 1 | . . . 1 Subdweller 12 | . . 12 . Best Kill Streak 6 | 5 6 4 3 Combat Bots Only 6 | . 6 4 3 Max Kills in Single Turn 2 | 1 2 1 1 Gunslinging . | . . . . Exploded 2 | . 2 . . Melee . | . . . . Uniques/NPCs Destroyed . | . . . . Combat | -11 -10 -10 -8 -------- Run | Yrd Mat Sub Mat Hostile Shots Fired 209 | . 58 103 48 Missed 55 | . 18 31 6 Damage Taken 2852 | . 420 1303 1129 Core 782 | . 81 137 564 Absorbed by Shields . | . . . . Core Remaining (%) 56 | 100 . 12 . Volleys Fired 178 | 18 41 84 35 Largest 2 | 2 2 2 2 Hottest 119 | 60 80 110 119 Shots Fired 300 | 36 81 129 54 Gun 167 | 36 67 46 18 Cannon 133 | . 14 83 36 Launcher . | . . . . Special . | . . . . Kinetic 149 | 18 52 46 33 Thermal 118 | . 14 83 21 Explosive . | . . . . Electromagnetic 33 | 18 15 . . Robot Hit Streak 21 | 8 8 21 8 Robot Miss Streak 3 | 2 3 2 3 Penetration Max . | . . . . Secondary Targets 1 | . 1 . . Max Gunslinging Chain 1 | . 1 . . Shots Hit Robots 175 | 25 49 70 31 Core Hits 75 | 9 24 24 18 Critical Kills 1 | . . 1 . Critical Parts Destroyed . | . . . . Critical Strikes 3 | . 1 1 1 Meltdown 1 | . . 1 . Blast 1 | . . . 1 Corrupt 1 | . 1 . . Melee Attacks . | . . . . Impact . | . . . . Slashing . | . . . . Piercing . | . . . . Sneak Attacks . | . . . . Combat Hostiles . | . . . . Follow-up Attacks . | . . . . Damage Inflicted 3652 | 368 773 1717 794 Guns 1513 | 248 409 663 193 Cannons 1832 | . 177 1054 601 Explosions 307 | 120 187 . . Melee . | . . . . Ramming . | . . . . Kinetic 1398 | 93 265 663 377 Thermal 1955 | 120 364 1054 417 Explosive . | . . . . Electromagnetic 299 | 155 144 . . Impact . | . . . . Slashing . | . . . . Piercing . | . . . . Highest Corruption . | . . . . Average Corruption . | . . . . Corruption Purged . | . . . . Corruption Blocked . | . . . . Overload Shots . | . . . . Overflow Damage 30 | 21 . 9 . Projectiles 9 | . . 9 . Explosions 21 | 21 . . . Melee . | . . . . Knockbacks 3 | . . . 3 Impact . | . . . . Kinetic 3 | . . . 3 Secondary . | . . . . Self-Inflicted Damage 60 | . 60 . . Shots 2 | . 2 . . Rammed . | . . . . Targets Rammed . | . . . . Kicked . | . . . . Crushed . | . . . . Highest Temperature 724 | 40 140 317 724 Average Temperature 125 | 22 42 64 244 Received Heat Transfer 1071 | . 114 570 387 Effects 24 | . . . 24 Shutdowns 5 | . . . 5 Energy Bleed 6 | . . . 6 Interference 2 | . . . 2 Matter Decay 2 | . . . 2 Short Circuit 1 | . . . 1 Damage (minor) 2 | . . . 2 Damage (major) 1 | . . . 1 Damage (core) 5 | . . . 5 Siege Activations . | . . . . Robots Corrupted . | . . . . Combat Hostiles . | . . . . Parts Fried . | . . . . Impact Corruptions . | . . . . Robots Melted 1 | . . 1 . Combat Hostiles 1 | . . 1 . Parts Melted 4 | . 1 3 . Heat Transferred 2668 | 50 620 1443 555 Parts Sabotaged . | . . . . Parts Stolen . | . . . . Parts Stripped . | . . . . Power Chain Reactions 5 | 3 2 . . Alert | -11 -10 -10 -8 ------- Run | Yrd Mat Sub Mat Peak Influence 290 | 25 290 . 276 Initial 76 | . 16 . 76 Average 133 | 7 135 . 154 Maximum Alert Level 1 | . 1 . 1 Low Security (%) 75 | 100 69 . 77 Level 1 24 | . 30 . 22 Level 2 . | . . . . Level 3 . | . . . . Level 4 . | . . . . Level 5 . | . . . . High Security . | . . . . Max Security . | . . . . Squads Dispatched 3 | . 2 . 1 Investigation 2 | . 1 . 1 Extermination . | . . . . Reinforcement 1 | . 1 . . Assault . | . . . . Garrison . | . . . . Intercept . | . . . . Searches Triggered . | . . . . Construction Impeded . | . . . . Haulers Reinforced . | . . . . Active Scanning Responses . | . . . . Cargo Convoy Interrupts . | . . . . Stealth | -11 -10 -10 -8 --------- Run | Yrd Mat Sub Mat Distress Signals . | . . . . Communications Jammed . | . . . . Distress Signals . | . . . . Times Spotted 53 | . 18 21 14 Peak Tracking Total 6 | . 6 4 3 Tactical Retreats 1 | . . 1 . Traps | -11 -10 -10 -8 ------- Run | Yrd Mat Sub Mat Traps Triggered 3 | . 1 1 1 Indirectly . | . . . . Trap Hack Attempts . | . . . . Triggered . | . . . . Disarmed . | . . . . Reprogrammed . | . . . . Reused . | . . . . Traps Extracted . | . . . . Installed . | . . . . Triggered . | . . . . Machines | -11 -10 -10 -8 ---------- Run | Yrd Mat Sub Mat Machines Disabled 2 | . 1 1 . Max in Single Turn 1 | . 1 1 . Machines Repaired . | . . . . Machines Dismantled . | . . . . Machines Sabotaged . | . . . . Overloaded Fab Kills . | . . . . Hacking | -11 -10 -10 -8 --------- Run | Yrd Mat Sub Mat Machines Accessed 9 | . 3 2 4 Terminals 6 | . 3 . 3 Fabricators . | . . . . Repair Stations . | . . . . Recycling Units . | . . . . Scanalyzers 1 | . . . 1 Garrison Access . | . . . . Total Hacks 17 | . 5 3 9 Successful 6 | . 2 3 1 Failed 11 | . 3 . 8 Catastrophic 3 | . 2 . 1 Database Lockouts . | . . . . Manual 7 | . 5 . 2 Terminals 11 | . 5 . 6 Fabricators . | . . . . Repair Stations . | . . . . Recycling Units . | . . . . Scanalyzers 3 | . . . 3 Garrison Access . | . . . . Terminal Hacks 4 | . 1 3 . Record 2 | . . 2 . Part Schematic 1 | . 1 . . Derelict Proto ID Bank 1 | . . 1 . Fabricator Hacks . | . . . . Repair Station Hacks . | . . . . Recycling Unit Hacks . | . . . . Scanalyzer 1 | . . . 1 Insert Component 1 | . . . 1 Garrison Access Hacks . | . . . . Unauthorized Hacks 1 | . 1 . . Terminals 1 | . 1 . . Botnet 1 | . 1 . . Fabricators . | . . . . Repair Stations . | . . . . Recycling Units . | . . . . Scanalyzers . | . . . . Garrison Access . | . . . . Data Cores Recovered . | . . . . Used . | . . . . Hacking Detections 6 | . 2 . 4 Full Trace Events . | . . . . Feedback Events . | . . . . Feedback Blocked . | . . . . Robot Schematics Acquired . | . . . . Robots Built . | . . . . Authchips . | . . . . Time . | . . . . Total Robot Build Rating . | . . . . Part Schematics Acquired 1 | . 1 . . Parts Built . | . . . . Authchips . | . . . . Time . | . . . . Total Part Build Rating . | . . . . Parts Repaired . | . . . . Time . | . . . . Parts Recycled . | . . . . Recycled Matter . | . . . . Retrieved Matter . | . . . . Retrieved Components . | . . . . Parts Scanalyzed 1 | . . . 1 Part Schematics Acquired . | . . . . Parts Damaged . | . . . . Bothacking | -11 -10 -10 -8 ------------ Run | Yrd Mat Sub Mat Used RIF Installer . | . . . . Robots Hacked . | . . . . Non-combat . | . . . . Combat . | . . . . Robot Hacks Applied . | . . . . Relay Couplers Released . | . . . . Fabnet Peak Effective % . | . . . . Robots Rewired . | . . . . Allies Hacked . | . . . . Hacks Repelled . | . . . . Allies | -11 -10 -10 -8 -------- Run | Yrd Mat Sub Mat Total Allies . | . . . . Largest Group . | . . . . Highest-Rated Group . | . . . . Highest-Rated Ally . | . . . . Total Orders . | . . . . Ally Attacks . | . . . . Total Damage . | . . . . Kills . | . . . . Allies Corrupted . | . . . . Allies Melted . | . . . . Intel | -11 -10 -10 -8 ------- Run | Yrd Mat Sub Mat Robot Analysis Total . | . . . . Derelict Logs Recovered 2 | . . 2 . Drone Launches . | . . . . Drone Recoveries . | . . . . Exploration | -11 -10 -10 -8 ------------- Run | Yrd Mat Sub Mat Turns Passed 7464 | 156 1106 5434 768 Spaces Moved 2696 | 79 400 1873 344 Core 288 | 6 . 282 . Treads 1701 | . . 1360 341 Legs 537 | 73 400 61 3 Wheels 170 | . . 170 . Hover . | . . . . Flight . | . . . . Fastest Speed 50 | 50 120 120 160 Average Speed 246 | 114 226 272 161 Slowest Speed 700 | 120 260 700 260 Overloaded Moves . | . . . . Propulsion Burnouts . | . . . . Robots Hopped . | . . . . Cave-ins Triggered . | . . . . Exploration Rate (%) 43 | 5 58 77 35 Regions Visited 3 Branch Regions 1 Pre-discovered Areas 2 | . . 2 . Known Exits Taken . | . . . . Unknown Exits Taken 3 | 1 1 1 . Scrap Searched 11 | . . 11 . Spaces Dug 1 | . . . 1 Terrain Destroyed 24 | 9 5 3 7 Melee . | . . . . Projectile 10 | . . 3 7 AOE 14 | 9 5 . . Terrain Rammed . | . . . . Walls Destroyed . | . . . . Machines Disabled . | . . . . Actions | -11 -10 -10 -8 --------- Run | Yrd Mat Sub Mat Total 3222 | 108 531 2076 507 Wait 198 | 1 75 48 74 Move 2693 | 78 399 1872 344 Hop . | . . . . Pick Up 48 | 4 7 22 15 Fast Attach 25 | 6 3 8 8 Attach 16 | . 1 9 6 Detach 4 | . . 2 2 Swap 23 | 1 1 17 4 Drop 37 | . 4 14 19 Fire 178 | 18 41 84 35 Melee . | . . . . Ram . | . . . . Kick . | . . . . Crush . | . . . . Escape Stasis . | . . . . Rewire . | . . . . Trap . | . . . . Miscellaneous . | . . . . Route ------- -11/Scrapyard -10/Materials (discovered 4 exits: [*Mat x2] / [*Min] / *Sub) -10/Subcaves -8/Materials (discovered 1 exit: [*Fac]) History --------- Turn | Location | Event 4 | -11/Scrapyard | Discovered new exit (range 15) 157 | -11/Scrapyard | Entered Materials 318 | -10/Materials | Build established: Mutant 364 | -10/Materials | Discovered new exit (range 3) 622 | -10/Materials | Discovered new exit (range 8) 948 | -10/Materials | Discovered new exit (range 10) 1197 | -10/Materials | Discovered new exit (range 6) 1263 | -10/Materials | Entered Subcaves 1687 | -10/Subcaves | Core integrity fell below 50% 1731 | -10/Subcaves | Lost 5 parts (1p2u2w) 1896 | -10/Subcaves | Learned location of Storage (-9) 1942 | -10/Subcaves | Core integrity fell below 20% 2042 | -10/Subcaves | Visited Clippyterm 2049 | -10/Subcaves | Learned Factory garrison access intel 2088 | -10/Subcaves | Shifting Twisted Machinery released Scrap Shield 2100 | -10/Subcaves | Shifting Twisted Machinery released Mak. Light Armor Plating 4399 | -10/Subcaves | A swath of the cavern ceiling suddenly collapsed 4688 | -10/Subcaves | Build established: Scavenger-Mutant 5163 | -10/Subcaves | A swath of the cavern ceiling suddenly collapsed 5929 | -10/Subcaves | Learned location of Zion (-7) 5929 | -10/Subcaves | Met a Zionite searching for "candidates" 5954 | -10/Subcaves | Shifting Twisted Machinery released Sub. Machine Gun 5959 | -10/Subcaves | Shifting Twisted Machinery released Spk. Treads 6554 | -10/Subcaves | Discovered new exit (range 12) 6631 | -10/Subcaves | Visited 4L-MR0's lab 6653 | -10/Subcaves | Found Meta Core 6697 | -10/Subcaves | Entered Materials 6697 | -8/Materials | Evolved 4 slots: Propulsion x2, Utility x2 7001 | -8/Materials | Core integrity fell below 50% 7007 | -8/Materials | Core integrity fell below 20% 7428 | -8/Materials | Discovered new exit (range 11) 7465 | -8/Materials | Destroyed by H-55 Commando with Gauss Rifle Last Messages --------------- 07342_ R-06 Scavenger collects Carbon-fiber Leg. 07342_ U-05 Engineer builds a Wall. 07344_ K-01 Serf collects debris. 07344_ Dropped Mak. Power Source. 07344_ Acquired Lgt. Angular Momentum Engine. 07346_ R-06 Scavenger collects Mak. Power Source. 07346_ U-05 Engineer builds a Wall. 07348_ K-01 Serf collects debris. 07400_ Acquired Imp. Sensor Array. 07414_ K-01 Serf cleans the Matter Filter. 07428_ EXIT=FOUND 07434_ Dropped Sub. Beam Cannon. 07435_ Acquired System Shield. 07438_ K-01 Serf cleans the Matter Filter. 07453_ Penetrated by Slug. 07462_ Dropped Lgt. Armor Plating. 07462_ Dropped Hrd. Medium Armor Plating. 07464_ Acquired Imp. Medium Armor Plating. 07465_ Penetrated by Slug. Map ----- +----------------------------------------------------+ | | | | | | | ???#############???????????????????#?????????????? | | ???##[ ! ##?????????????????????????????????? | | ##### ###??#?????????????????????????????? | | #####""" """ ##???#???????????????????#######???? | | #""" """ ##??#???#????????????????#######??## | | #"S """ ######################## ##??## | | """#""" ######################## ###?## | | T"# "" + # ##??## | | """# ###################### # ##?### | | =#####+########################## + ##?### | | +####### ##########????#???????### # ##### | | =%% # ##?????#??????### ############# | | #####+## # ###?#?????#???## # ##?## | | %% # + ###???????????## + """ ##?## | | """%]*!# ##########??##??#####?## # """ ##?## | | "R [ # #########?###???# #?## # """ ##### | | """ # # / #??#???#??# < #?## # ##### | | # # ! #?#?#?????# #?## # + | | ######## + #?????##### #### ###+######## | | ## # ! ###???#!! ##### | | ?""???## # ##????#!! k ##### | | ?""???## # [ ##????#!! h ! | | ?"????## # #?????#!@!### """"""" !! | | "???? ?# ###+####????#**!#?# """"""" ##### | | ??????## ##?#?#** #?# """"""" ?? ##### | | ?????# ############] """"""" [? ??### | | ???????# """"""" [[ #???? | | ???????# #???? | | ???????# #???? | | ????? ###+#######???? | | ??? #################### ##?????????????? | | ??###### #??? ??????????????# #? ??"?????????? | | ???????# #? ?? ????????????# #??????????????? | | ?? ????# #??????????#???????+ #?????"????????? | | ???????+ ???????????????????# ##?????????????? | | ???????# ???? ???#???? ?????# #? ???????????? | | ???????# ?????????? ????????# #??????????????? | | ???????# ?????#?????????????# #??????????????? | | ???????# ???????????????????# #??????????????? | | ????????? ??????????????? ????# #??????????????? | | ??????????????????????????????+ #??????????????? | | ?????????????????????????? ???# ???????????????? | | ??????????????????????????????? ???????????????? | | ?????????????????????????????????????????????????? | | ?????????????????????????????????????????????????? | | ?????????????????????????????????????????????????? | | ?????????????????????????????????????????????????? | +----------------------------------------------------+ Best States ------------- Heat Dissipation 50 Energy Generation 18 Energy Capacity 250 Matter Stores 300 Matter Capacity 300 Sight Range 16 Terrain Scan Range 16 Terrain Scan Density 10 Armor Coverage 325 Evasion (%) 55 Recoil Reduction 4 Item Schematics ----------------- Huge Storage Unit | -10/Materials | Hacked Robot Schematics ------------------ None Fabricated ------------ Nothing Alien Tech Used ----------------- None Achievements -------------- None Challenges ------------ None Game ------ Seed ChipForceSheargun Manual? 0 Play Time 00:33:39 Cumulative 120.8 hours Start 2024.04.29 @ 14:11:57 End 2024.04.29 @ 14:48:12 Sessions 1 Manual Loads 0 Difficulty Rogue Special Mode None Game No. 99 Rogue 99 Adventurer 0 Explorer 0 Win Type - Total 3 Types 2/0/1/0/0/0/0/0/0 Lore% 51 Gallery% 67 Achievement% 53 Wizard Run 0 Options --------- Layout 2 ASCII 0 Keyboard 0 Movement Mouse Keybinds 1 Fullscreen 2 Font 32/SmallcapsGlow Map View 50x44 Zoom Use 0% Tactical HUD 1 Map Filters NONE Filters NONE Steam 1 RUN: 5e91c81f-3bed-469d-bb47-5c3e3e157eef